fUSD/lending_fUSD_20241224
["ID","MTS","AMOUNT","RATE_DAILY","PERIOD"]
[346521663,1735018291447,-846.78,0.00016712,2]
[346521664,1735018291456,-500.0,0.00016712,2]
[346521665,1735018291467,-215.1,0.00016712,2]
[346521666,1735018291476,-547.95,0.00016712,2]
[346521667,1735018291486,-796.84,0.00016712,2]
[346521668,1735018291496,-713.44,0.00016712,2]
[346521669,1735018291505,-523.75,0.00016712,2]
[346521670,1735018291515,-500.0,0.00016712,2]
[346521671,1735018291525,-500.0,0.00016712,2]
[346521672,1735018291534,-500.0,0.00016712,2]
[346521673,1735018291544,-500.0,0.00016712,2]
[346521674,1735018291553,-500.0,0.00016712,2]
[346521675,1735018291563,-5016.22,0.00016712,2]
[346521676,1735018291572,-1638.06,0.00016712,2]
[346521677,1735018291581,-500.0,0.00016712,2]
[346521678,1735018291590,-551.44,0.00016712,2]
[346521679,1735018291599,-1164.78,0.00016712,2]
[346521680,1735018291609,-500.0,0.00016712,2]
[346521681,1735018291619,-782.49,0.00016712,2]
[346521682,1735018291628,-1583.85,0.00016712,2]
[346521683,1735018291638,-901.71,0.00016712,2]
[346521684,1735018291647,-500.0,0.00016712,2]
[346521685,1735018291657,-1977.81,0.00016712,2]
[346521686,1735018291666,-500.0,0.00016712,2]
[346521687,1735018291675,-509.19,0.00016712,2]
[346521688,1735018291685,-500.0,0.00016712,2]
[346521689,1735018291694,-500.0,0.00016712,2]
[346521690,1735018291704,-500.0,0.00016712,2]
[346521691,1735018291714,-500.0,0.00016712,2]
[346521692,1735018291724,-500.0,0.00016712,2]
[346521693,1735018291735,-792.79,0.00016712,2]
[346521694,1735018291744,-849.68,0.00016712,2]
[346521695,1735018291754,-2088.9,0.00016712,2]
[346521696,1735018291764,-220.70677729,0.00016712,2]
[346521697,1735018291776,-279.29322271,0.00016712,2]
[346521698,1735018291785,-538.83167956,0.00016712,2]
[346521699,1735018291797,-1517.04832044,0.00016712,2]
[346521700,1735018291807,-500.0,0.00016712,2]
[346521701,1735018291816,-7677.04,0.00016712,2]
[346521702,1735018291825,-543.48,0.00016712,2]
[346521703,1735018291835,-854.97,0.00016712,2]
[346521704,1735018291844,-1395.53,0.00016712,2]
[346521705,1735018291853,-500.0,0.00016712,2]
[346521706,1735018291863,-500.0,0.00016712,2]
[346521707,1735018291872,-3679.71,0.00016712,2]
[346521708,1735018291882,-500.0,0.00016712,2]
[346521709,1735018291892,-1080.57,0.00016712,2]
[346521710,1735018291901,-500.0,0.00016712,2]
[346521711,1735018291911,-1694.03,0.00016712,2]
[346521712,1735018291921,-500.0,0.00016712,2]
[346521713,1735018291931,-1385.02,0.00016712,2]
[346521714,1735018291940,-505.35,0.00016712,2]
[346521715,1735018291950,-500.0,0.00016712,2]
[346521716,1735018291960,-1117.85,0.00016712,2]
[346521717,1735018291970,-705.9,0.00016712,2]
[346521718,1735018291979,-1539.8,0.00016712,2]
[346521719,1735018291989,-629.56891617,0.00016712,2]
[346521720,1735018291998,-2249.94,0.00016712,2]
[346521721,1735018292009,-500.0,0.00016712,2]
[346521722,1735018292019,-263.16770402,0.00016712,2]
[346521723,1735018292029,-3833.98,0.00016712,2]
[346521724,1735018292039,-118.3057778,0.00016712,2]
[346521725,1735018292051,-304.33735203,0.00016712,2]
[346521726,1735018292063,-77.35687017,0.00016712,2]
[346521727,1735018292072,-937.66,0.00016712,2]
[346521728,1735018292082,-500.0,0.00016712,2]
[346521729,1735018292091,-2551.89,0.00016712,2]
[346521730,1735018292101,-152.33678845,0.00016712,2]
[346521731,1735018292113,-434.64321155,0.00016712,2]
[346521732,1735018292122,-500.0,0.00016712,2]
[346521733,1735018292132,-1335.36,0.00016712,2]
[346521734,1735018292142,-3168.41,0.00016712,2]
[346521735,1735018292155,-500.0,0.00016712,2]
[346521736,1735018292165,-1369.41,0.00016712,2]
[346521737,1735018292175,-575.13,0.00016712,2]
[346521738,1735018292185,-845.43,0.00016712,2]
[346521739,1735018292195,-500.0,0.00016712,2]
[346521740,1735018292205,-887.19,0.00016712,2]
[346521741,1735018292215,-500.0,0.00016712,2]
[346521742,1735018292225,-547.48,0.00016712,2]
[346521743,1735018292235,-716.51,0.00016712,2]
[346521744,1735018292244,-561.45,0.00016712,2]
[346521745,1735018292254,-500.0,0.00016712,2]
[346521746,1735018292264,-500.0,0.00016712,2]
[346521747,1735018292274,-558.02,0.00016712,2]
[346521748,1735018292284,-500.0,0.00016712,2]
[346521749,1735018292294,-500.0,0.00016712,2]
[346521750,1735018292304,-1000.0,0.00016712,2]
[346521751,1735018292314,-500.0,0.00016712,2]
[346521752,1735018292323,-500.0,0.00016712,2]
[346521753,1735018292334,-973.2,0.00016712,2]
[346521754,1735018292344,-3656.76,0.00016712,2]
[346521755,1735018292353,-500.0,0.00016712,2]
[346521756,1735018292363,-997.53,0.00016712,2]
[346521757,1735018292373,-855.77,0.00016712,2]
[346521758,1735018292383,-693.49,0.00016712,2]
[346521759,1735018292394,-500.0,0.00016712,2]
[346521760,1735018292404,-637.35,0.00016712,2]
[346521761,1735018292414,-1739.36,0.00016712,2]
[346521762,1735018292423,-500.0,0.00016712,2]
[346521763,1735018292433,-500.0,0.00016712,2]
[346521764,1735018292443,-705.36,0.00016712,2]
[346521765,1735018292452,-500.0,0.00016712,2]
[346521766,1735018292463,-500.0,0.00016712,2]
[346521767,1735018292472,-1543.65,0.00016712,2]
[346521768,1735018292481,-500.0,0.00016712,2]
[346521769,1735018292490,-820.97,0.00016712,2]
[346521770,1735018292499,-1819.38,0.00016712,2]
[346521771,1735018292509,-4120.74,0.00016712,2]
[346521772,1735018292518,-989.44,0.00016712,2]
[346521773,1735018292528,-910.57,0.00016712,2]
[346521774,1735018292537,-2961.05,0.00016712,2]
[346521775,1735018292546,-500.0,0.00016712,2]
[346521776,1735018292556,-503.58,0.00016712,2]
[346521777,1735018292565,-903.8,0.00016712,2]
[346521778,1735018292574,-596.96,0.00016712,2]
[346521779,1735018292584,-1456.76,0.00016712,2]
[346521780,1735018292593,-807.94,0.00016712,2]
[346521781,1735018292603,-2643.91,0.00016712,2]
[346521782,1735018292612,-1308.53,0.00016712,2]
[346521783,1735018292621,-794.16,0.00016712,2]
[346521784,1735018292632,-1213.29,0.00016712,2]
[346521785,1735018292641,-1676.79,0.00016712,2]
[346521786,1735018292866,-580.970733,0.00016712,2]
[346521787,1735018292921,-500.0,0.00016712,2]
[346521788,1735018292931,-1433.69,0.00016712,2]
[346521789,1735018292940,-5281.26,0.00016712,2]
[346521790,1735018292950,-677.19,0.00016712,2]
[346521791,1735018292960,-1372.29,0.00016712,2]
[346521792,1735018292971,-1023.69,0.00016712,2]
[346521793,1735018292980,-680.17,0.00016712,2]
[346521794,1735018292990,-552.15,0.00016712,2]
[346521795,1735018292999,-705.72,0.00016712,2]
[346521796,1735018293008,-500.0,0.00016712,2]
[346521797,1735018293019,-674.8,0.00016712,2]
[346521798,1735018293029,-4867.25,0.00016712,2]
[346521799,1735018293039,-3213.6,0.00016712,2]
[346521800,1735018293049,-854.26,0.00016712,2]
[346521801,1735018293058,-1660.69,0.00016712,2]
[346521802,1735018293068,-500.0,0.00016712,2]
[346521803,1735018293077,-548.87,0.00016712,2]
[346521804,1735018293087,-826.14,0.00016712,2]
[346521805,1735018293097,-500.0,0.00016712,2]
[346521806,1735018293107,-13073.05151274,0.00016712,2]
[346521807,1735018293120,-282.74194394,0.00016712,2]
[346521808,1735018293132,-1415.98654332,0.00016712,2]
[346521809,1735018293142,-501.41683523,0.00016712,2]
[346521810,1735018293155,-117.96316477,0.00016712,2]
[346521811,1735018293165,-3293.16,0.00016712,2]
[346521812,1735018293174,-500.0,0.00016712,2]
[346521813,1735018293184,-500.0,0.00016712,2]
[346521814,1735018293193,-527.97,0.00016712,2]
[346521815,1735018293203,-500.0,0.00016712,2]
[346521816,1735018293214,-215.52027691,0.00016712,2]
[346521817,1735018293223,-500.0,0.00016712,2]
[346521818,1735018293233,-1071.77,0.00016712,2]
[346521819,1735018293242,-419.35829249,0.00016712,2]
[346521820,1735018293252,-175.97,0.00016712,2]
[346521821,1735018293262,-150.0,0.00016812,2]
[346521822,1735018293271,-180.43,0.00016816,2]
[346521823,1735018293281,-2075.88434638,0.00016827,2]
[346521824,1735018293290,-500.0,0.00016848,2]
[346521825,1735018293301,-4138.0,0.000169,2]
[346521826,1735018293310,-1000.0,0.0001691,2]
[346521827,1735018293319,-172.46738494,0.00016927,2]
[346521828,1735018293329,-1099.8111523,0.00016968,2]
[346521829,1735018293339,-150.0,0.00016972,2]
[346521830,1735018293348,-150.0,0.00016972,2]
[346521831,1735018293357,-150.0,0.00016974,2]
[346521832,1735018293367,-153.0,0.00016981,2]
[346521833,1735018293376,-153.0,0.00016981,2]
[346521834,1735018293386,-153.0,0.00016981,2]
[346521835,1735018293396,-153.0,0.00016981,2]
[346521836,1735018293406,-153.0,0.00016981,2]
[346521837,1735018293415,-153.0,0.00016981,2]
[346521838,1735018293425,-153.0,0.00016981,2]
[346521839,1735018293434,-153.0,0.00016981,2]
[346521840,1735018293444,-153.0,0.00016981,2]
[346521841,1735018293454,-153.0,0.00016981,2]
[346521842,1735018293465,-153.0,0.00016981,2]
[346521843,1735018293475,-4.40631305,0.00016981,2]
[346521844,1735018293487,-148.59368695,0.00016981,2]
[346521845,1735018293497,-153.0,0.00016981,2]
[346521846,1735018293507,-153.0,0.00016981,2]
[346521847,1735018293517,-153.0,0.00016981,2]
[346521848,1735018293527,-153.0,0.00016981,2]
[346521849,1735018293536,-153.0,0.00016981,2]
[346521850,1735018293546,-153.0,0.00016981,2]
[346521851,1735018293555,-153.0,0.00016981,2]
[346521852,1735018293565,-153.0,0.00016981,2]
[346521853,1735018293574,-153.0,0.00016981,2]
[346521854,1735018293583,-153.0,0.00016981,2]
[346521855,1735018293592,-153.0,0.00016982,2]
[346521856,1735018293602,-153.0,0.00016982,2]
[346521857,1735018293611,-153.0,0.00016982,2]
[346521858,1735018293620,-153.0,0.00016982,2]
[346521859,1735018293630,-153.0,0.00016982,2]
[346521860,1735018293639,-153.0,0.00016982,2]
[346521861,1735018293649,-153.0,0.00016982,2]
[346521862,1735018293658,-153.0,0.00016982,2]
[346521863,1735018293668,-153.0,0.00016982,2]
[346521864,1735018293678,-153.0,0.00016983,2]
[346521865,1735018293688,-153.0,0.00016983,2]
[346521866,1735018293698,-153.0,0.00016983,2]
[346521867,1735018293707,-153.0,0.00016983,2]
[346521868,1735018293717,-153.0,0.00016983,2]
[346521869,1735018293727,-153.0,0.00016983,2]
[346521870,1735018293736,-153.0,0.00016983,2]
[346521871,1735018293745,-153.0,0.00016983,2]
[346521872,1735018293755,-153.0,0.00016983,2]
[346521873,1735018293764,-153.0,0.00016983,2]
[346521874,1735018293773,-153.0,0.00016983,2]
[346521875,1735018293782,-68.6362352,0.00016983,2]
[346521876,1735018293800,-4248.68,0.00014246,2]
[346521877,1735018293810,-84.3637648,0.00016983,2]
[346521878,1735018293819,-153.0,0.00016983,2]
[346521879,1735018293828,-141.82665618,0.00016984,2]
[346521880,1735018293840,-11.17334382,0.00016984,2]
[346521881,1735018293849,-153.0,0.00016984,2]
[346521882,1735018293859,-153.0,0.00016984,2]
[346521883,1735018293868,-153.0,0.00016984,2]
[346521884,1735018293877,-153.0,0.00016984,2]
[346521885,1735018293886,-153.0,0.00016984,2]
[346521886,1735018293895,-124.03037285,0.00016984,2]
[346521887,1735018293907,-28.96962715,0.00016984,2]
[346521888,1735018293917,-153.0,0.00016984,2]
[346521889,1735018293927,-153.0,0.00016984,2]
[346521890,1735018293936,-153.0,0.00016984,2]
[346521891,1735018293945,-153.0,0.00016984,2]
[346521892,1735018293954,-153.0,0.00016984,2]
[346521893,1735018293964,-153.0,0.00016984,2]
[346521894,1735018293974,-153.0,0.00016984,2]
[346521895,1735018293983,-153.0,0.00016984,2]
[346521896,1735018293992,-84.98764913,0.00016984,2]
[346521897,1735018294004,-68.01235087,0.00016984,2]
[346521898,1735018294013,-153.0,0.00016984,2]
[346521899,1735018294023,-153.0,0.00016984,2]
[346521900,1735018294033,-153.0,0.00016984,2]
[346521901,1735018294042,-153.0,0.00016984,2]
[346521902,1735018294053,-153.0,0.00016984,2]
[346521903,1735018294062,-153.0,0.00016984,2]
[346521904,1735018294071,-500.0,0.00016985,2]
[346521905,1735018294081,-500.0,0.00016985,2]
[346521906,1735018294090,-500.0,0.00016985,2]
[346521907,1735018294099,-42.92870863,0.00016985,2]
[346521908,1735018294115,-457.07129137,0.00016985,2]
[346521909,1735018294124,-500.0,0.00016985,2]
[346521910,1735018294134,-500.0,0.00016985,2]
[346521911,1735018294143,-500.0,0.00016985,2]
[346521912,1735018294153,-200.0,0.00016985,2]
[346521913,1735018294162,-500.0,0.00016985,2]
[346521914,1735018294171,-535.15,0.00016985,2]
[346521915,1735018294181,-500.0,0.00016985,2]
[346521916,1735018294190,-500.0,0.00016985,2]
[346521917,1735018294200,-609.1,0.00016985,2]
[346521918,1735018294209,-500.0,0.00016985,2]
[346521919,1735018294219,-500.0,0.00016985,2]
[346521920,1735018294228,-642.3522708,0.00016985,2]
[346521921,1735018294237,-500.0,0.00016985,2]
[346521922,1735018294247,-500.0,0.00016985,2]
[346521923,1735018294256,-500.0,0.00016985,2]
[346521924,1735018294266,-500.0,0.00016985,2]
[346521925,1735018294275,-500.0,0.00016985,2]
[346521926,1735018294284,-500.0,0.00016985,2]
[346521927,1735018294294,-596.36866162,0.00016985,2]
[346521928,1735018294303,-500.0,0.00016985,2]
[346521929,1735018294312,-500.0,0.00016985,2]
[346521930,1735018294321,-500.0,0.00016985,2]
[346521931,1735018294331,-500.0,0.00016985,2]
[346521932,1735018294340,-500.0,0.00016985,2]
[346521933,1735018294350,-500.0,0.00016985,2]
[346521934,1735018294359,-1508.76,0.00016985,2]
[346521935,1735018294368,-1465.72,0.00016985,2]
[346521936,1735018294377,-500.0,0.00016985,2]
[346521937,1735018294387,-500.0,0.00016985,2]
[346521938,1735018294396,-1465.24,0.00016985,2]
[346521939,1735018294406,-500.0,0.00016985,2]
[346521940,1735018294416,-500.0,0.00016985,2]
[346521941,1735018294425,-2919.0,0.00016985,2]
[346521942,1735018294435,-2253.9,0.00016985,2]
[346521943,1735018294444,-3237.5,0.00016985,2]
[346521944,1735018294454,-554.59,0.00016985,2]
[346521945,1735018294464,-794.47,0.00016985,2]
[346521946,1735018294473,-935.63,0.00016985,2]
[346521947,1735018294482,-500.0,0.00016985,2]
[346521948,1735018294492,-2816.14,0.00016985,2]
[346521949,1735018294501,-500.0,0.00016985,2]
[346521950,1735018294510,-955.57,0.00016985,2]
[346521951,1735018294519,-500.0,0.00016985,2]
[346521952,1735018294529,-500.0,0.00016985,2]
[346521953,1735018294538,-500.0,0.00016985,2]
[346521954,1735018294547,-908.11,0.00016985,2]
[346521955,1735018294557,-500.0,0.00016985,2]
[346521956,1735018294567,-500.0,0.00016985,2]
[346521957,1735018294576,-1028.08,0.00016985,2]
[346521958,1735018294586,-568.18,0.00016985,2]
[346521959,1735018294595,-683.69,0.00016985,2]
[346521960,1735018294605,-500.0,0.00016985,2]
[346521961,1735018294615,-1115.82,0.00016985,2]
[346521962,1735018294624,-722.75,0.00016985,2]
[346521963,1735018294633,-1499.78,0.00016985,2]
[346521964,1735018294642,-1265.66,0.00016985,2]
[346521965,1735018294652,-500.0,0.00016985,2]
[346521966,1735018294662,-7745.3,0.00016985,2]
[346521967,1735018294671,-457.93841767,0.00016985,2]
[346521968,1735018294681,-954.82,0.00016985,2]
[346521969,1735018294690,-500.0,0.00016985,2]
[346521970,1735018294700,-500.0,0.00016985,2]
[346521971,1735018294710,-153.0,0.00016986,2]
[346521972,1735018294720,-153.0,0.00016986,2]
[346521973,1735018294730,-153.0,0.00016986,2]
[346521974,1735018294740,-153.0,0.00016986,2]
[346521975,1735018294750,-153.0,0.00016986,2]
[346521976,1735018294760,-153.0,0.00016986,2]
[346521977,1735018294769,-153.0,0.00016986,2]
[346521978,1735018294779,-153.0,0.00016986,2]
[346521979,1735018294788,-153.0,0.00016986,2]
[346521980,1735018294798,-500.0,0.00016986,2]
[346521981,1735018294807,-546.3,0.00016986,2]
[346521982,1735018294818,-658.36,0.00016986,2]
[346521983,1735018294827,-500.0,0.00016986,2]
[346521984,1735018294836,-613.59217298,0.00016986,2]
[346521985,1735018294846,-500.0,0.00016986,2]
[346521986,1735018294855,-680.9,0.00016986,2]
[346521987,1735018294865,-500.0,0.00016986,2]
[346521988,1735018294874,-500.0,0.00016986,2]
[346521989,1735018294883,-500.0,0.00016986,2]
[346521990,1735018294892,-501.62,0.00016986,2]
[346521991,1735018294902,-586.12,0.00016986,2]
[346521992,1735018294913,-500.0,0.00016986,2]
[346521993,1735018294922,-500.0,0.00016986,2]
[346521994,1735018294932,-500.0,0.00016986,2]
[346521995,1735018294941,-500.0,0.00016986,2]
[346521996,1735018294950,-500.0,0.00016986,2]
[346521997,1735018294960,-500.0,0.00016986,2]
[346521998,1735018294969,-500.71,0.00016986,2]
[346521999,1735018294978,-582.46,0.00016986,2]
[346522000,1735018294987,-500.0,0.00016986,2]
[346522001,1735018294996,-500.0,0.00016986,2]
[346522002,1735018295006,-584.84,0.00016986,2]
[346522003,1735018295015,-667.98,0.00016986,2]
[346522004,1735018295024,-500.0,0.00016986,2]
[346522005,1735018295034,-500.0,0.00016986,2]
[346522006,1735018295043,-500.0,0.00016986,2]
[346522007,1735018295052,-500.0,0.00016986,2]
[346522008,1735018295062,-500.0,0.00016986,2]
[346522009,1735018295072,-711.57,0.00016986,2]
[346522010,1735018295081,-500.0,0.00016986,2]
[346522011,1735018295090,-385.54,0.00016986,2]
[346522012,1735018295099,-500.0,0.00016986,2]
[346522013,1735018295109,-897.7,0.00016986,2]
[346522014,1735018295118,-500.0,0.00016986,2]
[346522015,1735018295127,-500.0,0.00016986,2]
[346522016,1735018295136,-500.0,0.00016986,2]
[346522017,1735018295145,-500.0,0.00016986,2]
[346522018,1735018295157,-500.0,0.00016986,2]
[346522019,1735018295166,-560.63,0.00016986,2]
[346522020,1735018295237,-668.01,0.00016986,2]
[346522021,1735018295247,-500.0,0.00016986,2]
[346522022,1735018295257,-557.47,0.00016986,2]
[346522023,1735018295266,-500.0,0.00016986,2]
[346522024,1735018295275,-383.597552,0.00016986,2]
[346522025,1735018295284,-500.0,0.00016986,2]
[346522026,1735018295294,-555.168296,0.00016986,2]
[346522027,1735018295303,-500.0,0.00016986,2]
[346522028,1735018295312,-500.0,0.00016986,2]
[346522029,1735018295321,-946.68,0.00016986,2]
[346522030,1735018295330,-500.0,0.00016986,2]
[346522031,1735018295340,-500.0,0.00016986,2]
[346522032,1735018295349,-500.0,0.00016986,2]
[346522033,1735018295358,-500.0,0.00016986,2]
[346522034,1735018295368,-500.0,0.00016986,2]
[346522035,1735018295377,-592.9,0.00016986,2]
[346522036,1735018295386,-547.28,0.00016986,2]
[346522037,1735018295395,-598.2,0.00016986,2]
[346522038,1735018295404,-520.01,0.00016986,2]
[346522039,1735018295414,-500.0,0.00016986,2]
[346522040,1735018295423,-506.66,0.00016986,2]
[346522041,1735018295432,-500.0,0.00016986,2]
[346522042,1735018295441,-500.0,0.00016986,2]
[346522043,1735018295449,-662.17,0.00016986,2]
[346522044,1735018295459,-500.0,0.00016986,2]
[346522045,1735018295468,-500.0,0.00016986,2]
[346522046,1735018295477,-696.48,0.00016986,2]
[346522047,1735018295486,-500.0,0.00016986,2]
[346522048,1735018295495,-500.0,0.00016986,2]
[346522049,1735018295504,-500.0,0.00016986,2]
[346522050,1735018295513,-518.6,0.00016986,2]
[346522051,1735018295522,-500.0,0.00016986,2]
[346522052,1735018295531,-500.0,0.00016986,2]
[346522053,1735018295541,-1152.77,0.00016986,2]
[346522054,1735018295550,-500.0,0.00016986,2]
[346522055,1735018295558,-500.0,0.00016986,2]
[346522056,1735018295567,-725.31,0.00016986,2]
[346522057,1735018295576,-586.32,0.00016986,2]
[346522058,1735018295585,-846.78,0.00016986,2]
[346522059,1735018295594,-500.0,0.00016986,2]
[346522060,1735018295603,-547.95,0.00016986,2]
[346522061,1735018295612,-796.84,0.00016986,2]
[346522062,1735018295621,-713.44,0.00016986,2]
[346522063,1735018295630,-523.75,0.00016986,2]
[346522064,1735018295639,-500.0,0.00016986,2]
[346522065,1735018295648,-500.0,0.00016986,2]
[346522066,1735018295657,-546.78376753,0.00016986,2]
[346522067,1735018295667,-500.0,0.00016986,2]
[346522068,1735018295676,-500.0,0.00016986,2]
[346522069,1735018295685,-5016.22,0.00016986,2]
[346522070,1735018295694,-470.17967353,0.00016986,2]
[346522071,1735018295709,-1167.88032647,0.00016986,2]
[346522072,1735018295718,-642.96,0.00016986,2]
[346522073,1735018295727,-551.44,0.00016986,2]
[346522074,1735018295737,-1164.78,0.00016986,2]
[346522075,1735018295746,-500.0,0.00016986,2]
[346522076,1735018295755,-782.49,0.00016986,2]
[346522077,1735018295764,-1583.85,0.00016986,2]
[346522078,1735018295773,-901.71,0.00016986,2]
[346522079,1735018295782,-500.0,0.00016986,2]
[346522080,1735018295791,-1977.81,0.00016986,2]
[346522081,1735018295801,-500.0,0.00016986,2]
[346522082,1735018295810,-509.19,0.00016986,2]
[346522083,1735018295819,-500.0,0.00016986,2]
[346522084,1735018295828,-500.0,0.00016986,2]
[346522085,1735018295838,-500.0,0.00016986,2]
[346522086,1735018295847,-500.0,0.00016986,2]
[346522087,1735018295857,-500.0,0.00016986,2]
[346522088,1735018295866,-792.79,0.00016986,2]
[346522089,1735018295875,-849.68,0.00016986,2]
[346522090,1735018295884,-2088.9,0.00016986,2]
[346522091,1735018295893,-500.0,0.00016986,2]
[346522092,1735018295902,-2055.88,0.00016986,2]
[346522093,1735018295912,-500.0,0.00016986,2]
[346522094,1735018295921,-7677.04,0.00016986,2]
[346522095,1735018295930,-543.48,0.00016986,2]
[346522096,1735018295939,-854.97,0.00016986,2]
[346522097,1735018295949,-1395.53,0.00016986,2]
[346522098,1735018295958,-500.0,0.00016986,2]
[346522099,1735018295968,-500.0,0.00016986,2]
[346522100,1735018295977,-3679.71,0.00016986,2]
[346522101,1735018295986,-500.0,0.00016986,2]
[346522102,1735018295995,-1080.57,0.00016986,2]
[346522103,1735018296004,-500.0,0.00016986,2]
[346522104,1735018296013,-1694.03,0.00016986,2]
[346522105,1735018296022,-500.0,0.00016986,2]
[346522106,1735018296032,-1385.02,0.00016986,2]
[346522107,1735018296041,-505.35,0.00016986,2]
[346522108,1735018296050,-500.0,0.00016986,2]
[346522109,1735018296059,-1117.85,0.00016986,2]
[346522110,1735018296069,-705.9,0.00016986,2]
[346522111,1735018296078,-1539.8,0.00016986,2]
[346522112,1735018296087,-2249.94,0.00016986,2]
[346522113,1735018296097,-500.0,0.00016986,2]
[346522114,1735018296106,-3833.98,0.00016986,2]
[346522115,1735018296115,-500.0,0.00016986,2]
[346522116,1735018296124,-937.66,0.00016986,2]
[346522117,1735018296134,-500.0,0.00016986,2]
[346522118,1735018296143,-2551.89,0.00016986,2]
[346522119,1735018296152,-586.98,0.00016986,2]
[346522120,1735018296164,-500.0,0.00016986,2]
[346522121,1735018296173,-1335.36,0.00016986,2]
[346522122,1735018296182,-3168.41,0.00016986,2]
[346522123,1735018296191,-1369.41,0.00016986,2]
[346522124,1735018296200,-575.13,0.00016986,2]
[346522125,1735018296210,-845.43,0.00016986,2]
[346522126,1735018296219,-500.0,0.00016986,2]
[346522127,1735018296228,-887.19,0.00016986,2]
[346522128,1735018296237,-500.0,0.00016986,2]
[346522129,1735018296246,-547.48,0.00016986,2]
[346522130,1735018296255,-716.51,0.00016986,2]
[346522131,1735018296264,-561.45,0.00016986,2]
[346522132,1735018296274,-500.0,0.00016986,2]
[346522133,1735018296283,-500.0,0.00016986,2]
[346522134,1735018296292,-558.02,0.00016986,2]
[346522135,1735018296301,-500.0,0.00016986,2]
[346522136,1735018296310,-1000.0,0.00016986,2]
[346522137,1735018296319,-500.0,0.00016986,2]
[346522138,1735018296328,-500.0,0.00016986,2]
[346522139,1735018296336,-355.55701495,0.00016986,2]
[346522140,1735018296345,-973.2,0.00016986,2]
[346522141,1735018296355,-3656.76,0.00016986,2]
[346522142,1735018296364,-500.0,0.00016986,2]
[346522143,1735018296373,-997.53,0.00016986,2]
[346522144,1735018296383,-855.77,0.00016986,2]
[346522145,1735018296392,-693.49,0.00016986,2]
[346522146,1735018296401,-500.0,0.00016986,2]
[346522147,1735018296411,-637.35,0.00016986,2]
[346522148,1735018296421,-1739.36,0.00016986,2]
[346522149,1735018296430,-500.0,0.00016986,2]
[346522150,1735018296439,-500.0,0.00016986,2]
[346522151,1735018296448,-705.36,0.00016986,2]
[346522152,1735018296457,-500.0,0.00016986,2]
[346522153,1735018296466,-1543.65,0.00016986,2]
[346522154,1735018296475,-500.0,0.00016986,2]
[346522155,1735018296484,-820.97,0.00016986,2]
[346522156,1735018296493,-1819.38,0.00016986,2]
[346522157,1735018296502,-4120.74,0.00016986,2]
[346522158,1735018296511,-989.44,0.00016986,2]
[346522159,1735018296520,-910.57,0.00016986,2]
[346522160,1735018296529,-2961.05,0.00016986,2]
[346522161,1735018296537,-500.0,0.00016986,2]
[346522162,1735018296546,-503.58,0.00016986,2]